bitfinex/quotes_SOLUSD_20250924
["timestamp","ask_amount","ask_price","bid_price","bid_amount"]
[1758700310909,37.06,210.96,210.94,0.71]
[1758700311302,37.06,210.96,210.93,4.74088632]
[1758700311617,37.06,210.96,210.94,0.71]
[1758700314321,2.341468,210.97,210.94,0.71]
[1758700314521,37.06,210.96,210.94,0.71]
[1758700315902,2.341468,210.97,210.94,0.71]
[1758700316103,37.06,210.96,210.94,0.71]
[1758700318127,37.06,210.96,210.93,4.74086311]
[1758700318318,37.06,210.96,210.91,0.2]
[1758700318319,2.341468,210.95,210.91,0.2]
[1758700318510,2.341468,210.93,210.91,0.2]
[1758700318712,39.401468,210.93,210.91,0.2]
[1758700319127,44.14241688,210.93,210.91,0.2]
[1758700319313,44.24241688,210.93,210.91,0.2]
[1758700319513,0.1,210.92,210.91,0.2]
[1758700320413,39.69559401,210.92,210.82,0.2]
[1758700320622,4.74256044,210.86,210.82,0.2]
[1758700320822,2.341468,210.83,210.82,0.2]
[1758700321435,4.74256044,210.86,210.82,0.91]
[1758700321436,2.341468,210.86,210.82,0.91]
[1758700321606,39.401468,210.86,210.83,0.71]
[1758700321804,39.401468,210.86,210.84,0.71]
[1758700322010,2.341468,210.88,210.85,0.71]
[1758700322209,37.06,210.87,210.86,0.71]
[1758700322610,2.341468,210.9,210.87,4.74225826]
[1758700322806,39.401468,210.9,210.88,0.71]
[1758700323044,2.341468,210.9,210.89,0.71]
[1758700323327,37.06,210.91,210.89,0.71]
[1758700323820,37.06,210.91,210.9,0.71]
[1758700324014,2.341468,210.92,210.9,0.71]
[1758700324208,39.401468,210.92,210.9,0.71]
[1758700325408,37.06,210.92,210.91,0.71]
[1758700327328,0.1,211.0,210.91,0.71]
[1758700327542,2.341468,210.96,210.91,0.71]
[1758700327829,37.06,210.95,210.91,0.71]
[1758700328330,37.06,210.95,210.91,17.30473552]
[1758700328509,37.06,210.95,210.92,0.7]
[1758700328716,37.06,210.95,210.93,0.7]
[1758700329620,37.06,210.96,210.94,0.7]
[1758700330831,1.49822657,210.98,210.94,0.7]
[1758700331052,37.06,210.97,210.94,0.7]
[1758700331528,1.49822657,210.98,210.95,0.7]
[1758700331835,37.06,210.97,210.95,0.7]
[1758700332812,1.49822657,210.98,210.95,0.7]
[1758700333012,37.06,210.97,210.95,0.7]
[1758700334210,30.2393552,211.0,210.95,0.7]
[1758700334411,38.55822657,210.99,210.95,0.7]
[1758700334734,38.55822657,210.99,210.92,0.14216157]
[1758700334947,38.55822657,210.99,210.95,0.7]
[1758700335323,1.49822657,210.99,210.95,0.7]
[1758700335544,37.06,210.98,210.95,0.7]
[1758700335738,37.06,210.97,210.95,0.7]
[1758700335940,1.49822657,210.99,210.95,0.7]
[1758700336139,37.06,210.98,210.95,0.7]
[1758700336340,37.06,210.98,210.96,0.7]
[1758700337951,37.06,210.98,210.93,4.7409093]
[1758700338114,37.06,210.98,210.94,0.7]
[1758700338315,37.06,210.98,210.95,0.7]
[1758700339042,37.06,210.98,210.93,5.4409093]
[1758700339227,37.06,210.98,210.94,0.7]
[1758700339648,1.49822657,210.97,210.92,0.7]
[1758700340020,1.49822657,210.97,210.93,0.7]
[1758700340236,1.49822657,210.97,210.89,18.47937436]
[1758700340432,1.49822657,210.97,210.91,0.7]
[1758700341236,6.23831543,210.97,210.91,0.7]
[1758700342252,6.23831543,210.97,210.91,5.44133578]
[1758700342548,6.23831543,210.97,210.91,0.7]
[1758700342743,1.49822657,210.95,210.89,0.86216157]
[1758700343047,38.55822657,210.95,210.89,5.60392667]
[1758700343231,38.55822657,210.95,210.9,0.72]
[1758700343420,43.29873711,210.95,210.89,4.88392667]
[1758700343719,43.29873711,210.95,210.91,0.72]
[1758700344651,38.55822657,210.95,210.91,0.72]
[1758700345022,1.49822657,210.97,210.92,0.72]
[1758700345230,37.06,210.96,210.92,0.72]
[1758700347330,37.06,210.96,210.92,5.46100844]
[1758700349650,37.06,210.97,210.93,0.72]
[1758700350228,1.49822657,211.0,210.93,0.72]
[1758700350428,37.06,210.99,210.93,0.72]
[1758700350648,1.49822657,211.0,210.94,4.74068455]
[1758700350838,37.06,210.99,210.95,0.72]
[1758700351042,37.06,210.98,210.96,0.72]
[1758700351225,37.06,210.98,210.93,4.74088149]
[1758700351426,37.06,210.98,210.94,0.72]
[1758700351656,37.06,210.98,210.95,0.72]
[1758700352859,1.49822657,211.02,210.96,0.72]
[1758700353059,37.04,211.01,210.96,0.72]
[1758700353353,37.04,211.01,210.97,0.72]
[1758700353938,37.04,211.01,210.94,1.49822657]
[1758700354146,37.04,211.01,210.95,0.72]
[1758700354337,1.59822657,211.0,210.92,0.14216157]
[1758700354531,1.49822657,210.98,210.92,0.86216157]
[1758700354932,6.23816954,210.98,210.92,0.86216157]
[1758700355350,6.23816954,210.98,210.92,5.60323258]
[1758700355543,37.04,210.97,210.93,0.72]
[1758700355751,37.04,210.97,210.94,0.72]
[1758700358834,37.04,210.97,210.92,0.72]
[1758700359034,37.04,210.97,210.93,0.72]
[1758700359452,1.59822657,210.96,210.89,5.60385326]
[1758700359637,1.49822657,210.94,210.89,0.72]
[1758700359839,37.04,210.93,210.89,0.72]
[1758700360146,37.04,210.93,210.9,0.72]
[1758700361433,37.04,210.93,210.87,0.14216157]
[1758700361635,37.14,210.93,210.87,0.86216157]
[1758700363258,1.49822657,210.92,210.87,0.72]
[1758700363468,1.49822657,210.92,210.88,0.72]
[1758700367875,0.1,210.91,210.86,4.88464473]
[1758700368083,0.1,210.91,210.86,5.60464473]
[1758700368279,1.49822657,210.92,210.87,0.72]
[1758700368593,1.49822657,210.92,210.86,4.88464473]
[1758700368777,1.49822657,210.92,210.88,0.72]
[1758700370376,0.1,210.97,210.88,5.46195234]
[1758700370567,1.49822657,210.95,210.89,0.67]
[1758700371278,37.04,210.94,210.89,0.67]
[1758700371467,37.04,210.94,210.9,4.74158368]
[1758700371871,37.04,210.94,210.91,0.67]
[1758700372067,38.53822657,210.94,210.92,0.67]
[1758700372664,38.63822657,210.94,210.89,4.74178551]
[1758700372865,1.49822657,210.94,210.89,5.41178551]
[1758700373064,38.53822657,210.94,210.9,0.67]
[1758700373661,38.53822657,210.94,210.91,0.67]
[1758700374158,1.49822657,210.94,210.91,0.67]
[1758700374368,38.53822657,210.94,210.91,0.67]
[1758700374562,4.73994396,210.98,210.87,16.59777866]
[1758700374766,1.49822657,210.96,210.88,0.81216157]
[1758700375259,4.73994396,210.98,210.88,0.81216157]
[1758700375468,1.49822657,210.96,210.88,0.81216157]
[1758700375684,37.04,210.95,210.89,4.74180852]
[1758700375882,37.04,210.95,210.9,0.67]
[1758700376100,1.49822657,210.96,210.9,0.67]
[1758700376385,37.04,210.95,210.9,0.67]
[1758700377169,1.49822657,210.96,210.91,4.74135887]
[1758700377496,37.04,210.95,210.92,0.67]
[1758700378371,37.04,210.95,210.9,0.67]
[1758700378558,1.49822657,210.96,210.91,0.67]
[1758700378761,37.04,210.95,210.91,0.67]
[1758700379190,1.49822657,210.96,210.91,0.67]
[1758700379588,38.53822657,210.96,210.91,5.41134322]
[1758700380385,1.49822657,210.96,210.91,5.41134322]
[1758700380784,38.53822657,210.96,210.91,5.41134322]
[1758700381089,1.49822657,210.96,210.91,5.41134322]
[1758700381291,1.49822657,210.94,210.86,4.88464473]
[1758700381585,1.59822657,210.94,210.87,0.67]
[1758700382486,1.59822657,210.94,210.88,4.74203338]
[1758700382687,0.1,210.93,210.86,0.14216157]
[1758700382882,0.1,210.93,210.86,0.81216157]
[1758700383083,1.49822657,210.91,210.86,0.81216157]
[1758700383490,1.49822657,210.91,210.87,0.67]
[1758700383694,1.49822657,210.91,210.88,0.67]
[1758700383894,1.49822657,210.91,210.86,0.14216157]
[1758700384281,1.49822657,210.91,210.87,0.67]
[1758700384483,1.49822657,210.93,210.87,4.74225826]
[1758700384673,1.49822657,210.93,210.88,0.67]
[1758700385000,38.51822657,210.93,210.88,0.67]
[1758700385194,1.49822657,210.93,210.88,0.67]
[1758700385396,37.02,210.94,210.89,0.67]
[1758700385992,27.59822657,210.97,210.89,0.67]
[1758700386204,37.02,210.96,210.9,0.14216157]
[1758700386400,37.02,210.96,210.91,0.67]
[1758700386698,0.90578122,211.01,210.92,0.81216157]
[1758700387001,38.51822657,211.01,210.92,0.81216157]
[1758700387204,37.02,211.01,210.94,1.49822657]
[1758700387496,37.02,211.01,210.95,0.67]
[1758700388089,37.02,211.01,210.96,4.74023511]
[1758700388294,37.02,211.01,210.96,5.41023511]
[1758700388485,37.02,211.01,210.96,0.67]
[1758700389179,37.02,211.0,210.96,0.67]
[1758700389598,0.1,210.99,210.91,26.71]
[1758700389912,1.59822657,210.98,210.91,26.71]
[1758700390098,4.74001042,210.97,210.91,26.71]
[1758700390483,4.74001042,210.97,210.92,0.71]
[1758700390684,7.08087203,210.98,210.93,0.71]
[1758700390999,7.18087203,210.98,210.93,0.71]
[1758700391203,7.08087203,210.98,210.94,0.71]
[1758700391500,37.02,210.98,210.95,0.71]
[1758700391701,37.02,210.98,210.92,0.14216157]
[1758700391702,37.02,210.98,210.93,0.71]
[1758700392076,37.02,210.98,210.94,0.71]
[1758700392404,37.02,210.98,210.94,5.45065465]
[1758700392902,37.02,210.98,210.94,4.74065465]
[1758700393101,37.02,210.98,210.94,5.45065465]
[1758700393599,28.34106592,211.03,210.95,0.71]
[1758700393808,37.02,211.02,210.95,0.71]
[1758700394392,37.02,211.01,210.95,3.05106592]
[1758700394591,37.02,211.01,210.96,0.71]
[1758700394791,37.02,211.01,210.97,0.71]
[1758700396104,7.17973119,211.03,210.97,5.44986984]
[1758700396305,37.02,211.02,210.97,5.44986984]
[1758700396607,7.17973119,211.03,210.98,0.71]
[1758700396608,37.02,211.01,210.98,0.71]
[1758700396793,37.02,211.01,210.97,4.73986984]
[1758700396994,37.02,211.01,210.97,0.71]
[1758700397188,39.46106592,211.01,210.96,0.14216157]
[1758700397398,39.46106592,211.01,210.96,0.85216157]
[1758700398108,37.12,211.01,210.96,5.59239577]
[1758700398406,37.02,211.01,210.97,0.71]
[1758700399797,37.02,211.01,210.96,4.88239577]
[1758700399997,37.02,211.01,210.98,0.71]
[1758700401309,0.1,211.0,210.95,0.67]
[1758700401499,2.44106592,210.99,210.94,0.14216157]
[1758700401706,2.44106592,210.99,210.94,0.81216157]
[1758700402208,4.73978576,210.98,210.93,0.67]
[1758700402599,37.0,210.97,210.93,0.67]
[1758700402798,37.0,210.97,210.93,26.0]
[1758700403017,37.0,210.97,210.94,0.67]
[1758700403915,37.0,210.97,210.93,26.0]
[1758700404409,37.0,210.97,210.94,0.67]
[1758700406820,2.34106592,211.0,210.94,4.7406695]
[1758700407015,37.0,210.99,210.95,0.67]
[1758700407221,37.0,210.99,210.96,0.67]
[1758700407716,37.0,210.99,210.94,0.67]
[1758700407918,37.0,210.99,210.93,4.74072591]
[1758700408121,37.0,210.99,210.95,0.67]
[1758700410024,2.34106592,210.98,210.91,0.14216157]
[1758700410332,37.0,210.97,210.91,0.81216157]
[1758700410501,2.34106592,210.96,210.91,5.41115899]
[1758700410711,2.44106592,210.96,210.89,0.67]
[1758700411232,2.34106592,210.96,210.89,5.41161669]
[1758700411435,37.0,210.95,210.9,0.67]
[1758700411733,37.0,210.95,210.91,4.74135887]
[1758700411918,37.0,210.95,210.92,0.67]
[1758700412423,37.0,210.95,210.91,4.74135887]
[1758700412636,37.0,210.95,210.91,5.41135887]
[1758700413114,2.34106592,210.96,210.91,5.41135887]
[1758700413305,37.0,210.95,210.91,5.41135887]
[1758700413824,37.0,210.95,210.92,0.67]
[1758700414218,37.0,210.95,210.89,0.14216157]
[1758700414423,37.0,210.95,210.9,0.67]
[1758700414619,37.1,210.95,210.9,0.67]
[1758700414928,37.0,210.95,210.9,0.67]
[1758700415332,37.0,210.95,210.9,5.41147491]
[1758700415527,37.0,210.95,210.88,0.14216157]
[1758700415528,0.1,210.94,210.89,0.14216157]
[1758700415717,0.1,210.94,210.89,0.67]
[1758700416120,39.34106592,210.95,210.9,0.67]
[1758700416318,39.44106592,210.95,210.9,0.67]
[1758700416629,39.44106592,210.95,210.88,4.74183478]
[1758700416630,2.34106592,210.93,210.87,26.81216157]
[1758700417224,2.34106592,210.93,210.87,0.81216157]
[1758700417436,2.34106592,210.93,210.87,5.5542383]
[1758700417614,2.34106592,210.93,210.88,0.67]
[1758700417815,2.34106592,210.93,210.89,0.67]
[1758700418548,37.0,210.94,210.9,0.67]
[1758700419428,37.0,210.94,210.91,4.74135887]
[1758700419632,37.0,210.94,210.92,0.67]
[1758700419830,39.34106592,210.95,210.92,0.67]
[1758700420037,2.34106592,210.97,210.93,0.67]
[1758700420216,37.0,210.96,210.93,0.67]
[1758700420939,37.0,210.96,210.91,4.74135887]
[1758700421149,37.0,210.96,210.92,0.67]
[1758700421318,37.0,210.96,210.92,4.74098227]
[1758700421513,37.0,210.96,210.92,0.67]
[1758700421713,37.0,210.96,210.9,4.74158368]
[1758700421913,37.0,210.96,210.93,0.67]
[1758700423112,37.0,210.96,210.93,5.41090049]
[1758700423523,2.34106592,210.97,210.93,5.41090049]
[1758700423738,37.0,210.96,210.93,5.41090049]
[1758700424225,37.0,210.96,210.93,4.74090049]
[1758700424426,37.0,210.96,210.93,5.41090049]
[1758700424848,2.34106592,210.97,210.93,5.41090049]
[1758700425056,39.34106592,210.97,210.94,0.67]
[1758700425850,39.34106592,210.97,210.94,5.41066893]
[1758700427024,2.34106592,210.99,210.94,4.74066893]
[1758700427250,39.34106592,210.99,210.95,0.67]
[1758700427650,39.34106592,210.99,210.94,4.74066893]
[1758700427651,39.34106592,210.99,210.96,5.41017427]
[1758700429157,39.34106592,210.99,210.97,0.67]
[1758700431037,2.34106592,211.01,210.97,0.67]
[1758700431343,2.34106592,210.99,210.95,0.67]
[1758700431530,2.34106592,210.99,210.96,0.67]
[1758700431731,39.32106592,210.99,210.96,0.67]
[1758700433157,39.32106592,210.99,210.94,4.74068455]
[1758700433327,39.32106592,210.99,210.95,0.67]
[1758700434133,36.98,210.98,210.95,0.67]
[1758700436360,2.34106592,210.98,210.95,0.67]
[1758700436677,39.32106592,210.98,210.95,0.67]
[1758700437764,2.34106592,210.97,210.95,0.67]
[1758700438339,2.44106592,210.97,210.91,5.41119933]
[1758700438548,2.34106592,210.94,210.91,5.41119933]
[1758700438859,2.34106592,210.94,210.92,26.67]
[1758700440475,7.08183797,210.94,210.9,26.81216157]
[1758700440643,2.34106592,210.92,210.9,0.81216157]
[1758700441872,2.34106592,210.92,210.89,0.67]
[1758700442453,2.34106592,210.92,210.9,0.67]
[1758700444543,2.34106592,210.92,210.91,0.67]
[1758700445570,2.34106592,210.92,210.89,0.14216157]
[1758700445877,2.34106592,210.92,210.9,0.67]
[1758700447574,2.34106592,210.92,210.87,0.81216157]
[1758700448064,2.34106592,210.92,210.88,0.67]
[1758700449894,2.34106592,210.9,210.87,0.14216157]
[1758700450192,2.34106592,210.9,210.87,0.81216157]
[1758700450551,1.49917402,210.9,210.87,0.81216157]
[1758700451188,1.49917402,210.9,210.87,0.14216157]
[1758700451766,1.49917402,210.9,210.87,0.81216157]
[1758700452266,1.49917402,210.9,210.82,0.2]
[1758700452267,1.49917402,210.88,210.82,0.87]
[1758700454784,41.80315799,210.83,210.82,0.2]
[1758700455576,53.66105297,210.83,210.8,0.2]
[1758700455876,6.242782,210.81,210.8,0.2]
[1758700456279,6.342782,210.81,210.8,0.2]
[1758700456661,6.342782,210.81,210.78,0.2]
[1758700456662,26.0,210.79,210.78,0.2]
[1758700456861,64.45917402,210.79,210.78,0.2]
[1758700457177,64.55917402,210.79,210.78,0.2]
[1758700457582,69.30323208,210.79,210.78,0.2]
[1758700458377,73.17943752,210.79,210.78,0.2]
[1758700458973,69.30323208,210.79,210.78,0.2]
[1758700459292,69.20323208,210.79,210.78,0.2]
[1758700459589,1.49917402,210.79,210.78,0.91]
[1758700459972,38.47917402,210.79,210.78,0.91]
[1758700460768,1.49917402,210.79,210.78,0.91]
[1758700460989,1.49917402,210.79,210.78,0.2]
[1758700461217,43.22323208,210.79,210.78,0.2]
[1758700461494,6.24323208,210.79,210.78,0.2]
[1758700461689,43.22323208,210.79,210.78,0.2]
[1758700461895,6.24323208,210.79,210.78,0.2]
[1758700462076,43.22323208,210.79,210.78,0.2]
[1758700463689,43.32323208,210.79,210.78,0.2]
[1758700464281,32.34323208,210.79,210.78,0.2]
[1758700464479,43.22323208,210.79,210.78,0.2]
[1758700466381,43.32323208,210.79,210.78,0.2]
[1758700467000,43.22323208,210.79,210.78,0.2]
[1758700467299,43.32323208,210.79,210.78,0.2]
[1758700467502,43.22323208,210.79,210.78,0.2]
[1758700468700,43.32323208,210.79,210.78,0.2]
[1758700468881,43.22323208,210.79,210.78,0.2]
[1758700469400,43.32323208,210.79,210.78,0.2]
[1758700470317,43.32323208,210.79,210.76,17.59988579]
[1758700470318,55.18337724,210.79,210.76,17.59988579]
[1758700470600,27.49917402,210.77,210.76,17.59988579]
[1758700470898,64.57917402,210.77,210.72,0.2]
[1758700471079,1.49917402,210.73,210.72,0.2]
[1758700471271,39.97834804,210.73,210.72,0.2]
[1758700471476,44.72375685,210.73,210.72,0.2]
[1758700471670,43.22458283,210.73,210.72,0.2]
[1758700471894,44.72375685,210.73,210.72,0.2]
[1758700472293,6.24458283,210.73,210.72,0.2]
[1758700472500,38.47917402,210.73,210.72,0.87]
[1758700473084,1.49917402,210.73,210.72,0.87]
[1758700473291,38.47917402,210.73,210.72,0.87]
[1758700474321,1.49917402,210.73,210.72,0.87]
[1758700474506,36.98,210.73,210.72,0.87]
[1758700474701,1.49917402,210.74,210.72,0.87]
[1758700474702,27.90263277,210.79,210.72,0.87]
[1758700474906,1.49917402,210.76,210.73,0.67]
[1758700475121,38.47917402,210.76,210.73,0.67]
[1758700475995,1.49917402,210.74,210.72,0.2]
[1758700476199,38.47917402,210.74,210.72,0.2]
[1758700476713,38.47917402,210.74,210.73,0.67]
[1758700477420,1.90245178,210.8,210.73,0.81216157]
[1758700477709,1.49917402,210.82,210.77,0.14216157]
[1758700477907,1.49917402,210.82,210.78,0.67]
[1758700478489,36.98,210.83,210.78,0.67]
[1758700478789,1.49917402,210.86,210.79,13.73775558]
[1758700478991,1.49917402,210.86,210.81,0.14216157]
[1758700479299,1.49917402,210.86,210.82,0.67]
[1758700479497,1.49917402,210.86,210.82,5.41324868]
[1758700479711,36.98,210.87,210.83,0.67]
[1758700479893,1.49917402,210.86,210.83,0.67]
[1758700481007,1.49917402,210.86,210.84,0.67]
[1758700481724,38.45917402,210.86,210.84,0.67]
[1758700482903,38.45917402,210.86,210.81,26.81216157]
[1758700483124,1.49917402,210.84,210.82,0.67]
[1758700483430,1.49917402,210.84,210.83,0.67]
[1758700483816,4.74217963,210.88,210.83,0.67]
[1758700484007,1.49917402,210.84,210.83,0.67]
[1758700488316,1.49917402,210.84,210.83,5.41315799]
[1758700488517,1.49917402,210.86,210.83,5.41315799]
[1758700488705,1.49917402,210.86,210.84,0.67]
[1758700489231,1.49917402,210.86,210.85,0.67]
[1758700498438,1.49917402,210.86,210.83,0.81216157]
[1758700498638,1.49917402,210.86,210.84,0.67]
[1758700499629,1.49917402,210.86,210.83,0.14216157]
[1758700499938,1.49917402,210.86,210.84,0.67]
[1758700500539,1.49917402,210.86,210.83,0.14216157]
[1758700500540,1.49917402,210.86,210.83,4.88529263]
[1758700500843,1.49917402,210.86,210.85,0.67]
[1758700501214,1.49977892,210.86,210.85,0.67]
[1758700501544,2.19977892,210.86,210.81,26.67]
[1758700501742,1.49977892,210.82,210.81,26.67]
[1758700501905,1.49977892,210.82,210.81,26.0]
[1758700502109,1.49977892,210.82,210.8,0.67]
[1758700502332,4.74180852,210.89,210.81,0.67]
[1758700502552,40.26092744,210.92,210.82,39.73775558]
[1758700502553,1.49977892,210.88,210.82,39.73775558]
[1758700502741,1.49977892,210.88,210.85,0.14216157]
[1758700502928,1.49977892,210.88,210.86,0.67]
[1758700503439,1.49977892,210.88,210.87,4.74225826]
[1758700503742,1.49977892,210.88,210.87,5.41225826]
[1758700504153,4.74053566,210.95,210.87,5.41225826]
[1758700504462,1.49977892,210.91,210.87,4.74225826]
[1758700504677,1.49977892,210.91,210.88,0.67]
[1758700505172,1.49977892,210.91,210.89,0.67]
[1758700505755,1.49977892,210.91,210.9,0.67]
[1758700508340,1.49977892,210.93,210.9,5.41158368]
[1758700508540,1.49977892,210.93,210.91,0.67]
[1758700509048,1.49977892,210.93,210.89,0.67]
[1758700509247,1.49977892,210.93,210.9,0.67]
[1758700510246,1.49977892,210.93,210.91,26.0]
[1758700510747,0.7,210.92,210.88,26.0]
[1758700510952,1.49977892,210.91,210.88,26.67]
[1758700511870,1.49977892,210.91,210.88,0.67]
[1758700512060,1.49977892,210.91,210.9,26.0]
[1758700512648,2.34219222,210.91,210.9,26.0]
[1758700513173,3.04219222,210.91,210.86,0.14216157]
[1758700513380,3.04219222,210.91,210.86,0.81216157]
[1758700513381,2.34219222,210.89,210.86,0.81216157]
[1758700513875,2.34219222,210.89,210.87,0.71]
[1758700515649,2.34219222,210.89,210.88,0.71]
[1758700517557,2.34219222,210.91,210.88,0.71]
[1758700517787,2.34219222,210.92,210.89,0.71]
[1758700521777,7.08334567,210.92,210.89,0.71]
[1758700524675,2.34219222,210.92,210.89,0.71]
[1758700525087,2.34219222,210.92,210.88,14.45775558]
[1758700525881,7.08337557,210.92,210.88,14.45775558]
[1758700527484,7.08337557,210.92,210.89,0.72]
[1758700528888,2.34219222,210.92,210.89,0.72]
[1758700529066,4.74035218,210.96,210.91,26.0]
[1758700529385,2.34219222,210.94,210.92,0.72]
[1758700529578,2.34219222,210.94,210.93,0.72]
[1758700530104,2.34219222,210.94,210.91,26.72]
[1758700530268,2.34219222,210.94,210.92,0.72]
[1758700533187,2.34219222,210.96,210.88,13.73775558]
[1758700533486,2.34219222,210.94,210.91,26.0]
[1758700534184,2.34219222,210.92,210.91,26.0]
[1758700539695,2.34219222,210.92,210.85,0.72]
[1758700539696,44.68332629,210.92,210.85,0.72]
[1758700539877,44.68332629,210.92,210.77,20.0]
[1758700539878,2.34219222,210.9,210.89,26.0]
[1758700540190,39.94219222,210.92,210.89,26.0]
[1758700540394,39.26219222,210.92,210.89,26.72]
[1758700540895,2.34219222,210.92,210.89,26.72]
[1758700541575,2.34219222,210.92,210.9,26.0]
[1758700542578,7.08336453,210.92,210.9,26.0]
[1758700542993,0.68,210.91,210.89,26.0]
[1758700543194,2.34219222,210.9,210.89,26.0]
[1758700544374,2.34219222,210.9,210.89,26.72]
[1758700545174,2.34219222,210.9,210.89,31.46180852]
[1758700545505,2.34219222,210.9,210.89,26.72]
[1758700546576,11.84983975,210.98,210.89,31.46180852]
[1758700546898,2.34219222,210.93,210.9,0.72]
[1758700547203,2.34219222,210.93,210.91,0.72]
[1758700547897,2.34219222,210.93,210.89,30.74180852]
[1758700548106,2.34219222,210.93,210.92,0.72]
[1758700549187,2.34219222,210.93,210.89,30.74180852]
[1758700549407,2.34219222,210.93,210.9,0.72]
[1758700549704,4.74023511,210.96,210.91,0.72]
[1758700549888,0.68,210.95,210.9,26.0]
[1758700550308,0.68,210.94,210.88,0.72]
[1758700550611,0.68,210.94,210.89,26.0]
[1758700550795,2.34219222,210.9,210.89,26.0]
[1758700550996,0.69,210.93,210.89,26.0]
[1758700551193,2.34219222,210.9,210.89,26.0]
[1758700552217,43.9837759,210.9,210.8,0.69]
[1758700552518,36.9,210.89,210.81,0.69]
[1758700552690,2.34219222,210.85,210.81,0.69]
[1758700553010,2.34219222,210.85,210.82,13.73775558]
[1758700553191,2.34219222,210.85,210.83,0.69]
[1758700555011,2.34219222,210.85,210.82,13.73775558]
[1758700555185,2.34219222,210.85,210.84,0.69]
[1758700557508,2.34219222,210.85,210.84,31.43293302]
[1758700557708,2.34219222,210.86,210.84,31.43293302]
[1758700557905,2.34219222,210.86,210.85,0.69]
[1758700558996,2.34219222,210.89,210.85,14.28559401]
[1758700559190,2.34219222,210.89,210.86,0.69]
[1758700560009,2.34219222,210.89,210.86,5.43226817]
[1758700560204,2.34219222,210.91,210.87,0.69]
[1758700560722,39.24219222,210.94,210.89,26.0]
[1758700560892,39.24219222,210.94,210.9,0.69]
[1758700561092,39.24219222,210.94,210.89,26.0]
[1758700561093,39.24219222,210.94,210.91,0.69]
[1758700562223,2.34219222,210.92,210.89,26.69]
[1758700562513,2.34219222,210.92,210.9,0.69]
[1758700563604,2.34219222,210.92,210.89,26.0]
[1758700563919,2.34219222,210.92,210.89,26.69]
[1758700564106,39.24219222,210.94,210.9,0.69]
[1758700564311,2.34219222,210.94,210.9,0.69]
[1758700564498,2.34219222,210.94,210.89,30.74176989]
[1758700564700,2.34219222,210.94,210.91,0.69]
[1758700564910,2.34219222,210.94,210.89,30.74176989]
[1758700565096,2.34219222,210.94,210.92,0.69]
[1758700566322,2.34219222,210.94,210.93,0.69]
[1758700567022,2.34219222,210.96,210.93,0.69]
[1758700567324,2.34219222,210.96,210.9,26.0]
[1758700567514,2.34219222,210.96,210.94,0.69]
[1758700567892,16.59702105,210.98,210.95,0.69]
[1758700568092,16.59702105,210.98,210.96,0.69]
[1758700568293,43.06978937,211.01,210.97,0.69]
[1758700568701,2.44219222,211.01,210.97,26.0]
[1758700568893,0.1,211.01,210.98,0.69]
[1758700569093,0.1,211.01,210.99,0.69]
[1758700569796,0.1,211.01,210.94,16.59223404]
[1758700569797,0.1,211.01,211.0,0.69]
[1758700571914,0.1,211.01,210.99,26.0]
[1758700572505,0.1,211.01,211.0,0.69]
[1758700574104,0.1,211.01,210.99,26.0]
[1758700574309,0.1,211.01,210.99,26.69]
[1758700574823,0.1,211.01,211.0,0.67]
[1758700575818,4.83911189,211.01,211.0,0.67]
[1758700577104,0.1,211.01,211.0,0.67]